bitfinex/quotes_BTCUSD_20241222
["timestamp","ask_amount","ask_price","bid_price","bid_amount"]
[1734842774936,0.3088154,96383.0,96369.0,0.0765]
[1734842775120,0.1013084,96381.0,96365.0,0.207543]
[1734842775273,0.207511,96380.0,96365.0,0.207543]
[1734842775478,0.207511,96380.0,96370.0,0.207531]
[1734842775479,0.01909654,96380.0,96370.0,0.207531]
[1734842775666,0.01909654,96379.0,96370.0,0.207531]
[1734842776257,0.01909654,96381.0,96375.0,0.207522]
[1734842776875,0.004,96380.0,96375.0,0.207522]
[1734842777026,0.02709654,96380.0,96375.0,0.415044]
[1734842777230,0.01909654,96380.0,96375.0,0.415044]
[1734842777390,0.01909654,96380.0,96377.0,0.415036]
[1734842777597,0.29900514,96396.0,96376.0,0.0809]
[1734842777598,0.01909654,96391.0,96387.0,0.207496]
[1734842778019,0.01909654,96390.0,96387.0,0.207496]
[1734842778421,0.01909654,96389.0,96387.0,0.207496]
[1734842778828,0.01909654,96388.0,96387.0,0.207496]
[1734842779367,0.01909654,96388.0,96377.0,0.207518]
[1734842779522,0.01909654,96388.0,96377.0,0.415036]
[1734842779722,0.01909654,96388.0,96376.0,0.0809]
[1734842779723,0.207496,96387.0,96376.0,0.0809]
[1734842779956,0.01909654,96386.0,96376.0,0.0809]
[1734842780350,0.01909654,96385.0,96376.0,0.0809]
[1734842780556,0.01909654,96385.0,96369.0,0.0809]
[1734842780716,0.01909654,96385.0,96374.0,0.207523]
[1734842780915,0.01909654,96384.0,96375.0,8.57e-05]
[1734842781235,0.01909654,96383.0,96381.0,0.207508]
[1734842781730,0.01909654,96382.0,96381.0,0.207508]
[1734842782998,0.01909654,96382.0,96377.0,0.207518]
[1734842783197,0.207509,96381.0,96375.0,8.57e-05]
[1734842783637,0.01909654,96380.0,96375.0,8.57e-05]
[1734842784275,0.01909654,96379.0,96375.0,8.57e-05]
[1734842784724,0.01909654,96378.0,96375.0,8.57e-05]
[1734842785095,0.20260754,96380.0,96375.0,8.57e-05]
[1734842785263,0.001,96381.0,96375.0,8.57e-05]
[1734842785472,0.207501,96385.0,96375.0,8.57e-05]
[1734842785675,0.001,96380.0,96375.0,8.57e-05]
[1734842786304,0.207501,96385.0,96375.0,8.57e-05]
[1734842786500,0.209501,96385.0,96375.0,8.57e-05]
[1734842786705,0.002,96385.0,96375.0,8.57e-05]
[1734842787040,0.09152814,96391.0,96381.0,0.207507]
[1734842787413,0.09152814,96391.0,96377.0,0.207517]
[1734842787914,0.34477421,96394.0,96382.0,0.207506]
[1734842787915,0.09224562,96392.0,96382.0,0.207506]
[1734842788662,0.004,96391.0,96382.0,0.207506]
[1734842788955,0.09224562,96392.0,96382.0,0.207506]
[1734842789167,0.00071748,96392.0,96386.0,0.207497]
[1734842789370,0.00071748,96392.0,96376.0,0.1256]
[1734842789371,0.001,96385.0,96376.0,0.1256]
[1734842789493,0.001,96385.0,96382.0,0.207507]
[1734842789697,0.001,96385.0,96382.0,0.415014]
[1734842790087,0.00071748,96392.0,96391.0,0.207488]
[1734842790292,0.00071748,96392.0,96391.0,0.284788]
[1734842790293,0.00671748,96392.0,96391.0,0.284788]
[1734842790495,0.00671748,96392.0,96391.0,0.0773]
[1734842790669,0.00271748,96392.0,96391.0,0.0773]
[1734842790906,0.00271748,96392.0,96382.0,0.207507]
[1734842791378,0.00271748,96392.0,96380.0,0.0773]
[1734842791379,0.207488,96391.0,96375.0,8.57e-05]
[1734842791578,0.207488,96391.0,96376.0,0.20752]
[1734842791820,0.001,96385.0,96375.0,8.57e-05]
[1734842792504,0.207499,96386.0,96375.0,8.57e-05]
[1734842793055,0.3087984,96390.0,96376.0,0.20752]
[1734842793261,0.1013084,96390.0,96375.0,8.57e-05]
[1734842793465,0.001,96385.0,96377.0,0.207517]
[1734842794757,0.001,96385.0,96377.0,0.208517]
[1734842794953,0.2076596,96391.0,96377.0,0.207517]
[1734842795331,0.002,96390.0,96377.0,0.208517]
[1734842795725,0.2076596,96391.0,96377.0,0.208517]
[1734842795922,0.0001716,96391.0,96377.0,0.208517]
[1734842796259,0.0011716,96391.0,96377.0,0.001]
[1734842796460,0.0001716,96391.0,96377.0,0.001]
[1734842796635,0.0001716,96391.0,96380.0,0.08694447]
[1734842796997,0.0011716,96391.0,96388.0,0.207494]
[1734842797334,0.0011716,96391.0,96390.0,0.20749]
[1734842797450,0.0071716,96391.0,96390.0,0.20749]
[1734842797649,0.0011716,96391.0,96390.0,0.20749]
[1734842798484,0.0001716,96391.0,96390.0,0.20749]
[1734842798847,0.0031716,96391.0,96390.0,0.20749]
[1734842799755,0.0001716,96391.0,96390.0,0.20749]
[1734842800186,0.0001716,96391.0,96390.0,0.21749]
[1734842800389,0.0001716,96391.0,96390.0,0.01]
[1734842800952,0.01935988,96391.0,96390.0,0.01]
[1734842801702,0.02135988,96391.0,96390.0,0.01]
[1734842801898,0.02235988,96391.0,96390.0,0.01]
[1734842802324,0.12266828,96391.0,96390.0,0.01]
[1734842802726,0.12366828,96391.0,96390.0,0.01]
[1734842803080,0.12166828,96391.0,96390.0,0.01]
[1734842803208,0.12366828,96391.0,96390.0,0.01]
[1734842803653,0.02235988,96391.0,96390.0,0.01]
[1734842804837,0.0021716,96391.0,96390.0,0.01]
[1734842805826,0.0001716,96391.0,96390.0,0.01]
[1734842807561,0.0001716,96391.0,96390.0,0.01103735]
[1734842808182,0.0001716,96391.0,96390.0,0.11234575]
[1734842809347,6e-07,96391.0,96390.0,0.46354575]
[1734842809550,6e-07,96391.0,96390.0,0.5124084]
[1734842809743,0.0010006,96391.0,96390.0,0.6134084]
[1734842810299,0.00071748,96392.0,96391.0,0.580488]
[1734842810507,0.00071748,96392.0,96391.0,0.8098964]
[1734842810941,4.8e-07,96392.0,96391.0,1.26492194]
[1734842811289,0.0920167,96434.0,96427.0,0.20741]
[1734842811727,0.01915941,96436.0,96427.0,0.20741]
[1734842812330,0.01915941,96437.0,96427.0,0.20741]
[1734842812534,0.0920167,96438.0,96427.0,0.20741]
[1734842812927,0.11117611,96441.0,96427.0,0.20741]
[1734842813608,0.01915941,96444.0,96427.0,0.20741]
[1734842813825,0.0011714,96428.0,96427.0,0.22220629]
[1734842814225,0.0011714,96428.0,96427.0,0.32351469]
[1734842814850,0.0011714,96428.0,96427.0,0.40031469]
[1734842815054,0.0011714,96428.0,96427.0,0.71921469]
[1734842815336,0.0011714,96428.0,96427.0,0.81921469]
[1734842815938,0.0921881,96464.0,96446.0,0.1]
[1734842816163,0.09235198,96464.0,96460.0,0.491476]
[1734842816378,0.09235198,96464.0,96462.0,0.207335]
[1734842816590,0.09235198,96464.0,96463.0,0.1013084]
[1734842817183,0.09235198,96464.0,96455.0,0.0459]
[1734842817184,0.00033528,96464.0,96449.0,0.207363]
[1734842817382,0.00033528,96464.0,96442.0,0.1013084]
[1734842817591,0.00033528,96464.0,96462.0,0.002]
[1734842817739,0.00033528,96464.0,96456.0,0.207347]
[1734842817943,0.00133528,96464.0,96463.0,0.002]
[1734842818404,0.00133528,96464.0,96463.0,0.209333]
[1734842818966,0.00233528,96464.0,96463.0,0.209333]
[1734842819507,0.00133528,96464.0,96463.0,0.209333]
[1734842819913,0.00133528,96464.0,96463.0,0.207333]
[1734842820072,0.00333528,96464.0,96463.0,0.207333]
[1734842820272,0.00333528,96464.0,96456.0,0.207348]
[1734842820470,0.00133528,96464.0,96456.0,0.207348]
[1734842820673,0.00233528,96464.0,96458.0,0.207343]
[1734842821299,0.00133528,96464.0,96458.0,0.207343]
[1734842821501,0.00033528,96464.0,96458.0,0.207343]
[1734842821835,0.00233528,96464.0,96459.0,0.20734]
[1734842821968,0.00133528,96464.0,96461.0,0.207337]
[1734842822168,0.00133528,96464.0,96462.0,0.10234502]
[1734842822470,0.00233528,96464.0,96462.0,0.10234502]
[1734842822678,0.00233528,96464.0,96463.0,0.207333]
[1734842822899,0.00133528,96464.0,96463.0,0.207333]
[1734842823106,0.00033528,96464.0,96463.0,0.207333]
[1734842823304,0.00133528,96464.0,96463.0,0.207333]
[1734842823735,0.00033528,96464.0,96463.0,0.207333]
[1734842823931,0.00133528,96464.0,96463.0,0.207333]
[1734842824498,0.00229528,96464.0,96463.0,0.207333]
[1734842824852,0.00129528,96464.0,96463.0,0.207333]
[1734842825073,0.00229528,96464.0,96463.0,0.207333]
[1734842827333,0.00029528,96464.0,96463.0,0.207333]
[1734842827924,0.00029528,96464.0,96441.0,0.1227]
[1734842827925,0.00129528,96464.0,96441.0,0.1227]
[1734842828098,0.15,96462.0,96419.0,0.0768]
[1734842828300,0.207378,96443.0,96420.0,0.1013084]
[1734842828541,0.207396,96434.0,96420.0,0.1013084]
[1734842828776,0.207387,96438.0,96420.0,0.207425]
[1734842828908,0.207387,96438.0,96419.0,0.077837]
[1734842828909,0.207398,96433.0,96415.0,0.207435]
[1734842829113,0.207398,96433.0,96408.0,0.207449]
[1734842829114,0.1013084,96432.0,96428.0,8.57e-05]
[1734842829314,0.357402,96431.0,96428.0,8.57e-05]
[1734842829521,0.207406,96429.0,96428.0,8.57e-05]
[1734842829725,0.32776081,96429.0,96428.0,8.57e-05]
[1734842830124,0.47776081,96429.0,96428.0,8.57e-05]
[1734842830709,0.48276081,96429.0,96428.0,0.0010857]
[1734842831562,0.48576081,96429.0,96428.0,0.00097426]
[1734842831988,0.48276081,96429.0,96428.0,0.00097426]
[1734842832189,0.48576081,96429.0,96428.0,0.00097426]
[1734842832306,0.48576081,96429.0,96392.0,0.207485]
[1734842832307,0.207457,96406.0,96393.0,0.00103725]
[1734842832901,0.414914,96406.0,96393.0,0.00103725]
[1734842833082,0.207457,96406.0,96393.0,0.00103725]
[1734842833291,0.15,96426.0,96392.0,0.00016267]
[1734842833412,0.207465,96402.0,96392.0,0.00016267]
[1734842833622,0.414931,96402.0,96392.0,0.00016267]
[1734842833952,0.207465,96402.0,96393.0,0.005]
[1734842834966,0.414931,96402.0,96393.0,0.005]
[1734842835822,0.207475,96397.0,96392.0,0.00016267]
[1734842836209,0.207475,96397.0,96392.0,0.00316267]
[1734842836452,0.41495,96397.0,96392.0,0.00016267]
[1734842836562,0.207475,96397.0,96393.0,0.003]
[1734842837013,0.207475,96397.0,96392.0,0.00016267]
[1734842837229,0.208475,96397.0,96392.0,0.00316267]
[1734842837622,0.207475,96397.0,96392.0,0.00016267]
[1734842838187,0.207478,96396.0,96392.0,0.00016267]
[1734842838328,0.414956,96396.0,96392.0,0.00016267]
[1734842838939,0.414956,96396.0,96393.0,0.003]
[1734842839189,0.414956,96396.0,96392.0,0.00016267]
[1734842839599,0.415956,96396.0,96392.0,0.00316267]
[1734842839803,0.414956,96396.0,96392.0,0.00016267]
[1734842840235,0.414956,96396.0,96393.0,0.003]
[1734842840236,0.415956,96396.0,96393.0,0.003]
[1734842840360,0.415956,96396.0,96392.0,0.00016267]
[1734842840765,0.416956,96396.0,96392.0,0.00316267]
[1734842841175,0.391956,96396.0,96392.0,0.00316267]
[1734842841606,0.391956,96396.0,96392.0,0.00324837]
[1734842841843,0.394956,96396.0,96392.0,0.00324837]
[1734842842011,0.392956,96396.0,96392.0,0.00024837]
[1734842842210,0.207507,96382.0,96376.0,8.57e-05]
[1734842843604,0.207507,96382.0,96380.0,0.0020857]
[1734842845568,0.207507,96382.0,96380.0,8.57e-05]
[1734842845750,0.1013084,96381.0,96380.0,0.0020857]
[1734842845948,0.10393407,96403.0,96380.0,0.0020857]
[1734842846128,0.10393407,96403.0,96380.0,8.57e-05]
[1734842846129,0.207469,96400.0,96380.0,8.57e-05]
[1734842846330,0.0920167,96403.0,96387.0,0.207496]
[1734842846529,0.20747,96400.0,96387.0,0.207496]
[1734842847139,0.0920167,96402.0,96387.0,0.207496]
[1734842847341,0.00216369,96396.0,96387.0,0.207496]
[1734842847741,0.00016369,96396.0,96387.0,0.207496]
[1734842848296,0.207479,96395.0,96384.0,0.0814]
[1734842848503,0.414958,96395.0,96384.0,0.08243738]
[1734842848642,0.207479,96395.0,96384.0,0.08243738]
[1734842849050,0.00616369,96396.0,96380.0,8.57e-05]
[1734842849321,0.00616369,96396.0,96380.0,0.00112311]
[1734842849655,0.207479,96395.0,96381.0,0.207509]
[1734842849851,0.209479,96395.0,96382.0,0.00103741]
[1734842850085,0.213479,96395.0,96382.0,0.00103741]
[1734842850255,0.209479,96395.0,96382.0,0.00103741]
[1734842850458,0.207479,96395.0,96382.0,0.00103741]
[1734842850889,0.207479,96395.0,96380.0,8.57e-05]
[1734842851233,0.414959,96395.0,96380.0,0.00112311]
[1734842851551,0.207479,96395.0,96381.0,0.207509]
[1734842851750,0.207479,96395.0,96382.0,0.00103741]
[1734842852158,0.207481,96394.0,96382.0,0.00103741]
[1734842852363,0.207481,96394.0,96380.0,8.57e-05]
[1734842852766,0.207492,96389.0,96380.0,8.57e-05]
[1734842852965,0.207483,96393.0,96380.0,8.57e-05]
[1734842853373,0.207483,96393.0,96382.0,8.56e-05]
[1734842853581,0.207495,96388.0,96382.0,8.56e-05]
[1734842855286,0.207505,96383.0,96382.0,8.56e-05]
[1734842855682,0.207496,96387.0,96382.0,8.56e-05]
[1734842855886,0.414993,96387.0,96382.0,8.56e-05]
[1734842856474,0.207501,96385.0,96382.0,8.56e-05]
[1734842857312,0.415002,96385.0,96382.0,8.56e-05]
[1734842857671,0.207501,96385.0,96382.0,8.56e-05]
[1734842858048,0.01908701,96384.0,96382.0,8.56e-05]
[1734842858251,0.01908701,96383.0,96382.0,8.56e-05]
[1734842859022,0.01908701,96383.0,96380.0,6.041e-05]
[1734842859222,0.207507,96382.0,96380.0,6.041e-05]
[1734842859425,0.22659401,96382.0,96380.0,6.041e-05]
[1734842859832,0.01908701,96381.0,96380.0,6.041e-05]
[1734842861128,0.12039541,96381.0,96380.0,6.041e-05]
[1734842861263,0.27039541,96381.0,96380.0,6.041e-05]
[1734842862117,0.27239541,96381.0,96380.0,6.041e-05]
[1734842862321,0.27139541,96381.0,96380.0,6.041e-05]
[1734842862492,0.27039541,96381.0,96380.0,6.041e-05]
[1734842862694,0.27139541,96381.0,96380.0,6.041e-05]
[1734842862939,0.27239541,96381.0,96380.0,6.041e-05]
[1734842863315,0.02108701,96381.0,96380.0,6.041e-05]
[1734842864044,0.02008701,96381.0,96380.0,0.07606041]
[1734842864422,0.02408701,96381.0,96380.0,0.1784063]
[1734842864605,0.01908701,96381.0,96380.0,0.1784063]
[1734842865013,0.02208701,96381.0,96380.0,0.1784063]
[1734842865281,0.003,96381.0,96380.0,0.1784063]
[1734842865495,0.001,96381.0,96380.0,0.1784063]
[1734842865711,0.00016369,96396.0,96392.0,0.207484]
[1734842865926,0.00016369,96396.0,96388.0,0.207494]
[1734842866162,0.0001714,96395.0,96382.0,0.207507]
[1734842866381,0.0001714,96395.0,96383.0,0.00103736]
[1734842867045,0.0001714,96395.0,96384.0,0.207503]
[1734842867224,0.0001714,96395.0,96386.0,0.207499]
[1734842867447,0.0001714,96395.0,96388.0,0.414988]
[1734842868370,0.0051714,96395.0,96388.0,0.414988]
[1734842868592,0.0021714,96395.0,96388.0,0.414988]
[1734842868793,0.0031714,96395.0,96388.0,0.414988]
[1734842869041,0.0051714,96395.0,96388.0,0.414988]
[1734842869263,0.0051714,96395.0,96394.0,0.207481]
[1734842869959,0.0051714,96395.0,96394.0,0.3087894]
[1734842870403,0.0021714,96395.0,96394.0,0.3847894]
[1734842870871,0.0051714,96395.0,96394.0,0.3847894]
[1734842871076,0.0031714,96395.0,96394.0,0.3847894]
[1734842871307,0.0051714,96395.0,96394.0,0.3867894]
[1734842871980,0.0001714,96395.0,96394.0,0.3847894]
[1734842872197,0.0001714,96395.0,96394.0,0.3867894]
[1734842876903,4e-07,96395.0,96394.0,0.6081894]
[1734842877118,4e-07,96395.0,96394.0,0.84049919]
[1734842878191,0.0010004,96395.0,96394.0,0.84049919]
[1734842878452,0.0010004,96395.0,96394.0,0.83849919]
[1734842878617,4e-07,96395.0,96394.0,0.8061894]
[1734842879030,0.0010004,96395.0,96394.0,0.8061894]
[1734842879789,0.0020004,96395.0,96394.0,0.8111894]
[1734842880104,0.0010004,96395.0,96394.0,0.8061894]
[1734842880302,0.0010004,96395.0,96394.0,1.3328894]
[1734842880612,0.0010004,96395.0,96394.0,1.34537611]
[1734842880828,0.0010004,96395.0,96394.0,0.9034894]
[1734842881029,0.0010004,96395.0,96394.0,0.9114894]
[1734842881231,4e-07,96395.0,96394.0,0.9034894]
[1734842881434,0.0010004,96395.0,96394.0,0.9034894]
[1734842881659,0.0020004,96395.0,96394.0,1.0114894]
[1734842882015,0.0010004,96395.0,96394.0,0.9114894]
[1734842882209,0.0010004,96395.0,96394.0,1.3098894]
[1734842882425,0.0020004,96395.0,96394.0,1.3328894]
[1734842882818,0.0010004,96395.0,96394.0,1.3248894]
[1734842883196,0.0020004,96395.0,96394.0,1.3288894]
[1734842883395,0.0010004,96395.0,96394.0,1.3248894]
[1734842883604,0.0020004,96395.0,96394.0,1.3288894]
[1734842884179,0.0010004,96395.0,96394.0,1.3288894]
[1734842884690,9e-08,96396.0,96395.0,0.4504]
[1734842884892,9e-08,96396.0,96395.0,0.5517084]
[1734842885083,9e-08,96396.0,96395.0,1.0704084]
[1734842886612,0.082,96446.0,96395.0,1.0704084]
[1734842886613,0.082,96446.0,96427.0,0.20741]
[1734842886816,0.00033523,96428.0,96427.0,0.72594]
[1734842887426,0.00033523,96428.0,96427.0,0.9276484]
[1734842887629,0.00033523,96428.0,96427.0,0.9046484]
[1734842888258,0.00033523,96428.0,96427.0,0.8272484]
[1734842888932,0.00133523,96428.0,96427.0,0.8292484]
[1734842889353,0.00033523,96428.0,96427.0,0.8272484]
[1734842889760,0.00133523,96428.0,96427.0,0.8342484]
[1734842889966,0.00133523,96428.0,96427.0,0.52553]
[1734842891090,0.00033523,96428.0,96427.0,0.51853]
[1734842891442,0.00033523,96428.0,96427.0,0.52153]
[1734842891872,0.00033523,96428.0,96427.0,0.51853]
[1734842892487,0.00033523,96428.0,96427.0,0.51953]
[1734842892865,0.10164363,96428.0,96427.0,0.51853]
[1734842893065,0.25164363,96428.0,96427.0,0.51953]
[1734842893986,0.25164363,96428.0,96427.0,0.51853]
[1734842894164,0.207423,96422.0,96395.0,0.207479]
[1734842894366,0.207444,96412.0,96396.0,0.00103722]
[1734842894578,0.207455,96407.0,96396.0,0.00103722]
[1734842894781,0.207455,96407.0,96395.0,0.1013084]
[1734842894782,0.207455,96407.0,96394.0,8.57e-05]
[1734842894988,0.207455,96407.0,96395.0,0.207479]
[1734842895202,0.207455,96407.0,96396.0,0.00103725]
[1734842895401,0.207455,96407.0,96395.0,0.207479]
[1734842895603,0.207455,96407.0,96394.0,0.1013941]
[1734842896222,0.207455,96407.0,96395.0,0.207479]
[1734842896405,0.207455,96407.0,96396.0,0.002]
[1734842896835,0.207455,96407.0,96394.0,8.57e-05]
[1734842897031,0.207455,96407.0,96394.0,0.0020857]
[1734842897238,0.207455,96407.0,96394.0,8.57e-05]
[1734842897548,0.207455,96407.0,96396.0,0.002]
[1734842897924,0.207455,96407.0,96397.0,0.00103726]
[1734842898246,0.207455,96407.0,96396.0,0.002]
[1734842898452,0.207467,96401.0,96396.0,0.002]
[1734842898815,0.207467,96401.0,96394.0,8.57e-05]
[1734842899015,0.207467,96401.0,96394.0,0.0010857]
[1734842899254,0.207467,96401.0,96394.0,8.57e-05]
[1734842899662,0.207467,96401.0,96396.0,0.003]
[1734842899870,0.207467,96401.0,96394.0,8.57e-05]
[1734842900275,0.207467,96401.0,96394.0,0.0030857]
[1734842900481,0.207467,96401.0,96394.0,8.57e-05]
[1734842900732,0.207467,96401.0,96396.0,0.003]
[1734842901925,0.2076384,96401.0,96394.0,8.57e-05]
[1734842902313,0.2076384,96401.0,96394.0,0.0030857]
[1734842902513,0.2076384,96401.0,96394.0,8.57e-05]
[1734842902950,0.2076384,96401.0,96396.0,0.003]
[1734842904740,0.2076384,96401.0,96396.0,0.004]
[1734842904980,0.2076384,96401.0,96396.0,0.001]
[1734842905343,0.2076384,96401.0,96396.0,0.004]
[1734842906230,0.4151064,96401.0,96396.0,0.004]
[1734842906403,0.2076384,96401.0,96396.0,0.004]
[1734842906915,0.2076384,96401.0,96396.0,0.003]
[1734842907216,0.2086384,96401.0,96396.0,0.003]
[1734842907822,0.0001714,96401.0,96396.0,0.003]
[1734842908026,0.0011714,96401.0,96394.0,8.57e-05]
[1734842908631,0.207468,96400.0,96394.0,8.57e-05]
[1734842910630,0.0011714,96401.0,96394.0,8.57e-05]
[1734842910839,0.207468,96400.0,96394.0,8.57e-05]
[1734842911451,0.208468,96400.0,96394.0,8.57e-05]
[1734842912296,0.001,96400.0,96394.0,8.57e-05]
[1734842912703,0.208469,96400.0,96394.0,8.57e-05]
[1734842913054,0.001,96400.0,96394.0,8.57e-05]
[1734842913902,0.20847,96400.0,96394.0,8.57e-05]
[1734842914301,0.001,96400.0,96394.0,8.57e-05]
[1734842915938,0.207479,96395.0,96394.0,8.57e-05]
[1734842916705,0.0817,96396.0,96394.0,8.57e-05]
[1734842917017,0.207479,96395.0,96394.0,0.0010857]
[1734842917441,0.207479,96395.0,96394.0,8.57e-05]
[1734842917657,0.3087874,96395.0,96394.0,8.57e-05]
[1734842917853,0.3087874,96395.0,96394.0,0.0020857]
[1734842918249,0.3087874,96395.0,96394.0,8.57e-05]
[1734842918457,0.3107874,96395.0,96394.0,8.57e-05]
[1734842919331,0.3087874,96395.0,96394.0,8.57e-05]
[1734842919539,0.3157874,96395.0,96394.0,8.57e-05]
[1734842920118,0.3137874,96395.0,96394.0,8.57e-05]
[1734842920323,0.3167874,96395.0,96394.0,8.57e-05]
[1734842920865,0.3087874,96395.0,96394.0,8.57e-05]
[1734842920990,0.3137874,96395.0,96394.0,8.57e-05]
[1734842921185,0.3157874,96395.0,96394.0,8.57e-05]
[1734842921427,0.3107874,96395.0,96394.0,8.57e-05]
[1734842921631,0.3137874,96395.0,96394.0,8.57e-05]
[1734842924316,0.005,96395.0,96394.0,8.57e-05]
[1734842924960,0.212479,96395.0,96394.0,8.57e-05]
[1734842925273,0.209479,96395.0,96394.0,8.57e-05]
[1734842925477,0.207479,96395.0,96394.0,8.57e-05]
[1734842925677,0.207479,96395.0,96394.0,0.0010857]
[1734842925905,0.207479,96395.0,96394.0,8.57e-05]
[1734842926143,0.20747,96400.0,96394.0,8.57e-05]
[1734842926472,0.001,96395.0,96394.0,8.57e-05]
[1734842926662,0.003,96395.0,96394.0,8.57e-05]
[1734842927004,0.001,96395.0,96394.0,8.57e-05]
[1734842927205,0.02020126,96395.0,96394.0,8.57e-05]
[1734842927419,0.01920126,96395.0,96394.0,8.57e-05]
[1734842927786,0.003,96395.0,96394.0,8.57e-05]
[1734842928371,0.004,96395.0,96394.0,8.57e-05]
[1734842928573,0.207471,96399.0,96394.0,8.57e-05]
[1734842929500,0.001,96395.0,96394.0,8.57e-05]
[1734842929913,0.207471,96399.0,96394.0,8.57e-05]
[1734842930152,0.209471,96399.0,96394.0,8.57e-05]
[1734842930626,0.207471,96399.0,96394.0,8.57e-05]
[1734842930895,0.210471,96399.0,96394.0,8.57e-05]
[1734842931137,0.001,96395.0,96394.0,8.57e-05]
[1734842931881,0.001,96395.0,96394.0,0.00112305]
[1734842932069,0.0001714,96401.0,96394.0,0.07972305]
[1734842932600,0.002,96399.0,96396.0,0.207477]
[1734842932849,0.002,96399.0,96398.0,0.207473]
[1734842933082,0.0001714,96401.0,96398.0,0.414946]
[1734842933333,0.0001714,96401.0,96400.0,0.207468]
[1734842933334,0.0021714,96401.0,96400.0,0.207468]
[1734842933830,0.0001714,96401.0,96400.0,0.3087764]
[1734842934074,0.0031714,96401.0,96400.0,0.3087764]
[1734842934320,0.0001714,96401.0,96400.0,0.3087764]
[1734842934540,0.0011714,96401.0,96400.0,0.3087764]
[1734842934753,0.0001714,96401.0,96400.0,0.3087764]
[1734842935214,0.0001714,96401.0,96400.0,0.3127764]
[1734842935656,0.0001714,96401.0,96400.0,0.3137764]
[1734842944028,0.0001714,96401.0,96400.0,0.5405764]
[1734842944229,0.0001714,96401.0,96400.0,0.7635764]
[1734842944866,0.0001714,96401.0,96400.0,0.5365764]
[1734842945253,0.0001714,96401.0,96400.0,0.5355764]
[1734842945703,0.0001714,96401.0,96400.0,0.5365764]
[1734842946117,0.0001714,96401.0,96400.0,0.5355764]
[1734842946319,0.0001714,96401.0,96400.0,0.6385764]
[1734842946469,0.0001714,96401.0,96400.0,0.5395764]
[1734842946686,0.0011714,96401.0,96400.0,0.5485764]
[1734842946847,0.0011714,96401.0,96400.0,0.6485764]
[1734842947451,0.0011714,96401.0,96400.0,0.7715764]
[1734842947653,0.0011714,96401.0,96400.0,0.8167764]
[1734842948071,4e-07,96401.0,96400.0,1.27180194]
[1734842948680,4e-07,96401.0,96400.0,1.28843521]
[1734842949126,0.0001712,96427.0,96402.0,0.1]
[1734842949463,0.00033523,96427.0,96425.0,0.207414]
[1734842950102,0.00033523,96427.0,96421.0,0.207422]
[1734842950307,0.00033523,96427.0,96423.0,0.207419]
[1734842950535,0.00033523,96427.0,96425.0,0.001]
[1734842950738,0.207412,96426.0,96425.0,0.001]
[1734842950940,0.00033523,96427.0,96425.0,0.001]
[1734842952048,0.207412,96426.0,96414.0,0.00103705]
[1734842953577,0.209412,96426.0,96414.0,0.00103705]
[1734842953871,0.207423,96422.0,96414.0,0.00103705]
[1734842954072,0.207477,96397.0,96394.0,8.57e-05]
[1734842954497,0.414954,96397.0,96394.0,8.57e-05]
[1734842955539,0.414954,96397.0,96394.0,0.0020857]
[1734842955690,0.414954,96397.0,96394.0,0.0110857]
[1734842955899,0.414954,96397.0,96394.0,0.0020857]
[1734842956313,0.414954,96397.0,96394.0,0.0030857]
[1734842957050,0.414954,96397.0,96394.0,0.0010857]
[1734842957588,0.414954,96397.0,96394.0,8.57e-05]
[1734842958027,0.416954,96397.0,96394.0,8.57e-05]
[1734842958413,0.414954,96397.0,96394.0,8.57e-05]
[1734842958609,0.1013084,96396.0,96394.0,8.57e-05]
[1734842958815,0.357479,96395.0,96394.0,8.57e-05]
[1734842959016,0.4587874,96395.0,96394.0,8.57e-05]
[1734842959225,0.2513084,96395.0,96382.0,8.57e-05]
[1734842959432,0.207505,96383.0,96382.0,0.00063178]
[1734842959830,0.289205,96383.0,96382.0,0.00063178]
[1734842960007,0.3905134,96383.0,96382.0,0.00063178]
[1734842960160,0.40962596,96383.0,96382.0,0.00063178]
[1734842961198,0.22661756,96383.0,96382.0,0.00063178]
[1734842961603,0.207505,96383.0,96382.0,0.00063178]
[1734842961783,0.208505,96383.0,96382.0,0.00063178]
[1734842961983,0.209505,96383.0,96382.0,0.00063178]
[1734842965215,0.3108134,96383.0,96382.0,0.00063178]
[1734842965421,0.4608134,96383.0,96382.0,0.00063178]
[1734842965631,0.5878134,96383.0,96382.0,0.00063178]
[1734842966940,0.486505,96383.0,96382.0,0.00063178]
[1734842967153,0.359505,96383.0,96382.0,0.00063178]
[1734842967373,0.209505,96383.0,96382.0,0.00063178]
[1734842968003,0.208505,96383.0,96382.0,0.00063178]
[1734842968506,0.209505,96383.0,96382.0,0.00063178]
[1734842968708,0.208505,96383.0,96382.0,0.00063178]
[1734842969327,0.207505,96383.0,96382.0,0.00063178]
[1734842969521,0.208505,96383.0,96382.0,0.00063178]
[1734842970310,0.209505,96383.0,96382.0,0.00063178]
[1734842970738,0.207505,96383.0,96382.0,0.00063178]
[1734842971089,0.209505,96383.0,96382.0,0.00063178]
[1734842979975,0.359505,96383.0,96382.0,0.00063178]
[1734842981006,0.209505,96383.0,96382.0,0.00063178]
[1734842982216,0.3108134,96383.0,96382.0,0.00063178]
[1734842982469,0.3879134,96383.0,96382.0,0.00063178]
[1734842982987,0.3108134,96383.0,96382.0,0.00063178]
[1734842984876,0.207518,96377.0,96376.0,8.57e-05]
[1734842986024,0.22671659,96377.0,96376.0,8.57e-05]
[1734842986918,0.22671659,96377.0,96376.0,0.0010857]
[1734842987115,0.22671659,96377.0,96376.0,0.0030857]
[1734842988289,0.22671659,96377.0,96376.0,8.57e-05]
[1734842988678,0.214518,96377.0,96376.0,8.57e-05]
[1734842989371,0.3158264,96377.0,96376.0,8.57e-05]
[1734842989876,0.3128264,96377.0,96376.0,8.57e-05]
[1734842990076,0.4658264,96377.0,96376.0,8.57e-05]
[1734842990509,0.4618264,96377.0,96376.0,8.57e-05]
[1734842990711,0.4658264,96377.0,96376.0,8.57e-05]
[1734842995490,0.364518,96377.0,96376.0,8.57e-05]
[1734842996494,0.38371337,96377.0,96376.0,8.57e-05]
[1734842998014,0.48502177,96377.0,96376.0,8.57e-05]
[1734842998216,0.82428171,96377.0,96376.0,8.57e-05]
[1734842998819,0.89978171,96377.0,96376.0,8.57e-05]
[1734843000573,1.17583181,96377.0,96376.0,8.57e-05]
[1734843000697,0.2731,96374.0,96347.0,0.0022551]
[1734843000892,0.1,96354.0,96347.0,0.0022551]
[1734843001099,0.35758,96348.0,96347.0,0.0022551]
[1734843001530,0.37677537,96348.0,96347.0,0.0022551]
[1734843001749,0.22677537,96348.0,96347.0,0.0022551]
[1734843001978,0.22677537,96348.0,96337.0,0.0338551]